Cogmind - Beta 13 @@@ ROGUE MODE // 2024.06.05 @ 00:50:01 Player: KTG-V3 Result: Destroyed self with Rocket Launcher Performance ------------- Evolutions (0) 0 Regions Visited (1) 200 Robots Destroyed (29) 145 Value Destroyed (681) 681 Prototype IDs (2) 40 Alien Tech Used (0) 0 Bonus (0) 0 TOTAL SCORE: 1066 Bonus ------- None Cogmind --------- Core Integrity 0/250 Matter 16/300 Energy 100/100 System Corruption 0% Temperature Cool (0) Movement Treading (240) Ox1 Location -10/Materials Parts ------- > --- POWER (1) -------- (None) > --- PROPULSION (2) --- Light Treads Light Treads > --- UTILITY (2) ------ Heat Sink High-capacity Storage Unit > --- WEAPON (2) ------- Rocket Launcher Rocket Launcher > --- INVENTORY (20) --- Ion Engine Light Ion Engine Compact Wheel Heat Sink Hacking Suite Medium Laser Light Cannon Light Cannon Light Cannon Light Cannon Light Cannon Rocket Launcher Rocket Launcher Peak State ------------ > --- POWER ------------ Ion Engine > --- PROPULSION ------- Light Treads Compact Wheel > --- UTILITY ---------- Heat Sink High-capacity Storage Unit > --- WEAPON ----------- Light Cannon Light Cannon > --- INVENTORY -------- Ion Engine Light Ion Engine Light Treads Light Treads Light Treads Hacking Suite Medium Laser Light Cannon Light Cannon Light Cannon Light Cannon Rocket Launcher Rocket Launcher Rocket Launcher Rocket Launcher [Rating: 9] Favorites ----------- Power Light Ion Engine Engine Light Ion Engine Propulsion Light Treads Treads Light Treads Wheel Compact Wheel Utility Heat Sink Device Heat Sink Storage Small Storage Unit Weapon Light Cannon Energy Gun Small Laser Ballistic Gun Light Assault Rifle Ballistic Cannon Light Cannon Launcher Rocket Launcher Special Melee Weapon Datajack Build | -11 -10 ------- Run | Yrd Mat Slots Evolved . | . . Power . | . . Propulsion . | . . Utility . | . . Weapon . | . . Parts Attached 28 | 6 22 Power 6 | 1 5 Engine 6 | 1 5 Core . | . . Reactor . | . . Propulsion 7 | 2 5 Treads 5 | 2 3 Leg . | . . Wheel 2 | . 2 Hover . | . . Flight . | . . Utility 5 | 1 4 Device 2 | . 2 Storage 3 | 1 2 Processor . | . . Hackware . | . . Protection . | . . Artifact . | . . Weapon 10 | 2 8 Energy Gun 1 | 1 . Energy Cannon . | . . Ballistic Gun 1 | 1 . Ballistic Cannon 5 | . 5 Launcher 2 | . 2 Special Weapon . | . . Impact Weapon . | . . Slashing Weapon . | . . Piercing Weapon . | . . Special Melee Weapon 1 | . 1 Unidentified Prototypes . | . . Parts Lost 5 | . 5 Power 2 | . 2 Propulsion 2 | . 2 Utility . | . . Weapon 1 | . 1 Highest Loss Streak 3 | . 3 To Critical Strikes . | . . Average Slot Usage (%) 94 | . 94 Engine 13 | . 13 Treads 21 | . 21 Wheel 6 | . 6 Device 9 | . 9 Storage 14 | . 14 Energy Gun 4 | . 4 Ballistic Gun 7 | . 7 Ballistic Cannon 14 | . 14 Naked Turns . | . . Heaviest Build 52 | 10 52 Greatest Support 40 | 40 40 Greatest Overweight (x) 3 | 1 3 Average Overweight (x) 1 | . 1 Largest Inventory Capacity 20 | 8 20 Average Capacity 11 | 7 12 Most Carried 17 | 6 17 Average Carried 9 | 4 9 Final Capacity 20 | 8 20 Final Carried 13 | 6 13 Class Distribution -------------------- 100% | Mutant Dominant Class ---------------- Mutant | -10/Materials Resources | -11 -10 ----------- Run | Yrd Mat Matter Collected 668 | 273 395 Remotely . | . . Salvage Created 878 | 139 739 Parts 44 | 3 41 Haulers Intercepted 2 | . 2 Recyclers Shooed 1 | . 1 Parts Field Recycled . | . . Retrieved Matter . | . . Parts Self-Destructed . | . . Prevented . | . . Kills | -11 -10 ------- Run | Yrd Mat Combat Hostiles Destroyed 17 | . 17 Guns 6 | . 6 Cannons 8 | . 8 AOE 3 | . 3 Classes Destroyed 9 | 2 7 Worker 1 | . 1 Tunneler 2 | 2 . Hauler 2 | . 2 Recycler 3 | 1 2 Operator 1 | . 1 Watcher 3 | . 3 Swarmer 3 | . 3 Grunt 11 | . 11 Subdweller 3 | . 3 Best Kill Streak 6 | 3 6 Combat Bots Only 5 | . 5 Max Kills in Single Turn 2 | 1 2 Gunslinging . | . . Exploded 2 | . 2 Melee . | . . Uniques/NPCs Destroyed . | . . Combat | -11 -10 -------- Run | Yrd Mat Hostile Shots Fired 111 | . 111 Missed 34 | . 34 Damage Taken 1194 | . 1194 Core 257 | . 257 Absorbed by Shields . | . . Core Remaining (%) 100 | 100 . Volleys Fired 107 | 13 94 Largest 2 | 2 2 Hottest 70 | 60 70 Shots Fired 211 | 26 185 Gun 116 | 26 90 Cannon 88 | . 88 Launcher 7 | . 7 Special . | . . Kinetic 156 | 13 143 Thermal 48 | 13 35 Explosive 7 | . 7 Electromagnetic . | . . Robot Hit Streak 21 | 8 21 Robot Miss Streak 6 | 1 6 Penetration Max . | . . Secondary Targets . | . . Shots Hit Robots 143 | 20 123 Core Hits 48 | 5 43 Critical Kills . | . . Critical Parts Destroyed 1 | 1 . Critical Strikes 3 | 1 2 Destroy 1 | 1 . Blast 2 | . 2 Melee Attacks . | . . Impact . | . . Slashing . | . . Piercing . | . . Sneak Attacks . | . . Combat Hostiles . | . . Follow-up Attacks . | . . Damage Inflicted 2013 | 203 1810 Guns 747 | 203 544 Cannons 1093 | . 1093 Explosions 173 | . 173 Melee . | . . Ramming . | . . Kinetic 1424 | 66 1358 Thermal 416 | 137 279 Explosive 173 | . 173 Electromagnetic . | . . Impact . | . . Slashing . | . . Piercing . | . . Highest Corruption . | . . Average Corruption . | . . Corruption Purged . | . . Corruption Blocked . | . . Overload Shots . | . . Overflow Damage . | . . Projectiles . | . . Explosions . | . . Melee . | . . Knockbacks 14 | . 14 Impact . | . . Kinetic 14 | . 14 Secondary . | . . Self-Inflicted Damage 65 | . 65 Shots 2 | . 2 Rammed . | . . Targets Rammed . | . . Kicked . | . . Crushed . | . . Highest Temperature 134 | 80 134 Average Temperature 48 | 38 51 Received Heat Transfer 447 | . 447 Siege Activations . | . . Robots Corrupted . | . . Combat Hostiles . | . . Parts Fried . | . . Impact Corruptions . | . . Robots Melted . | . . Combat Hostiles . | . . Parts Melted 4 | 1 3 Heat Transferred 950 | 300 650 Parts Sabotaged . | . . Parts Stolen . | . . Parts Stripped . | . . Power Chain Reactions . | . . Alert | -11 -10 ------- Run | Yrd Mat Peak Influence 261 | 15 261 Initial 9 | . 9 Average 112 | 4 125 Maximum Alert Level 1 | . 1 Low Security (%) 88 | 100 86 Level 1 11 | . 13 Level 2 . | . . Level 3 . | . . Level 4 . | . . Level 5 . | . . High Security . | . . Max Security . | . . Squads Dispatched 3 | . 3 Investigation 2 | . 2 Extermination . | . . Reinforcement 1 | . 1 Assault . | . . Garrison . | . . Intercept . | . . Searches Triggered . | . . Construction Impeded . | . . Haulers Reinforced . | . . Active Scanning Responses . | . . Cargo Convoy Interrupts . | . . Stealth | -11 -10 --------- Run | Yrd Mat Distress Signals 1 | . 1 Communications Jammed . | . . Distress Signals . | . . Times Spotted 26 | . 26 Peak Tracking Total 5 | . 5 Tactical Retreats 1 | . 1 Traps | -11 -10 ------- Run | Yrd Mat Traps Triggered 1 | . 1 Indirectly . | . . Trap Hack Attempts 17 | . 17 Triggered . | . . Disarmed 2 | . 2 Reprogrammed . | . . Reused . | . . Traps Extracted . | . . Installed . | . . Triggered . | . . Machines | -11 -10 ---------- Run | Yrd Mat Machines Disabled 3 | . 3 Max in Single Turn 1 | . 1 Machines Repaired . | . . Machines Dismantled . | . . Machines Sabotaged . | . . Overloaded Fab Kills . | . . Hacking | -11 -10 --------- Run | Yrd Mat Machines Accessed 3 | . 3 Terminals 3 | . 3 Fabricators . | . . Repair Stations . | . . Recycling Units . | . . Scanalyzers . | . . Garrison Access . | . . Total Hacks 13 | . 13 Successful 4 | . 4 Failed 9 | . 9 Catastrophic 2 | . 2 Database Lockouts . | . . Manual 8 | . 8 Terminals 13 | . 13 Fabricators . | . . Repair Stations . | . . Recycling Units . | . . Scanalyzers . | . . Garrison Access . | . . Terminal Hacks 4 | . 4 Part Schematic 1 | . 1 Robot Analysis 1 | . 1 Prototype ID Bank 1 | . 1 Locate Traps 1 | . 1 Fabricator Hacks . | . . Repair Station Hacks . | . . Recycling Unit Hacks . | . . Scanalyzer . | . . Garrison Access Hacks . | . . Unauthorized Hacks . | . . Terminals . | . . Fabricators . | . . Repair Stations . | . . Recycling Units . | . . Scanalyzers . | . . Garrison Access . | . . Data Cores Recovered . | . . Used . | . . Hacking Detections 3 | . 3 Full Trace Events 1 | . 1 Feedback Events . | . . Feedback Blocked . | . . Robot Schematics Acquired . | . . Robots Built . | . . Authchips . | . . Time . | . . Total Robot Build Rating . | . . Part Schematics Acquired 1 | . 1 Parts Built . | . . Authchips . | . . Time . | . . Total Part Build Rating . | . . Parts Repaired . | . . Time . | . . Parts Recycled . | . . Recycled Matter . | . . Retrieved Matter . | . . Retrieved Components . | . . Parts Scanalyzed . | . . Part Schematics Acquired . | . . Parts Damaged . | . . Bothacking | -11 -10 ------------ Run | Yrd Mat Used RIF Installer . | . . Robots Hacked . | . . Non-combat . | . . Combat . | . . Robot Hacks Applied . | . . Relay Couplers Released . | . . Fabnet Peak Effective % . | . . Robots Rewired . | . . Allies Hacked . | . . Hacks Repelled . | . . Allies | -11 -10 -------- Run | Yrd Mat Total Allies . | . . Largest Group . | . . Highest-Rated Group . | . . Highest-Rated Ally . | . . Total Orders . | . . Ally Attacks . | . . Total Damage . | . . Kills . | . . Allies Corrupted . | . . Allies Melted . | . . Intel | -11 -10 ------- Run | Yrd Mat Robot Analysis Total 1 | . 1 Derelict Logs Recovered . | . . Drone Launches . | . . Drone Recoveries . | . . Exploration | -11 -10 ------------- Run | Yrd Mat Turns Passed 1150 | 131 1019 Spaces Moved 423 | 52 371 Core 6 | 6 . Treads 203 | 46 157 Legs . | . . Wheels 214 | . 214 Hover . | . . Flight . | . . Fastest Speed 50 | 50 95 Average Speed 145 | 149 145 Slowest Speed 240 | 160 240 Overloaded Moves . | . . Propulsion Burnouts . | . . Robots Hopped . | . . Cave-ins Triggered . | . . Exploration Rate (%) 36 | 5 67 Regions Visited 1 Branch Regions . Pre-discovered Areas . | . . Known Exits Taken . | . . Unknown Exits Taken 1 | 1 . Scrap Searched . | . . Spaces Dug 4 | . 4 Terrain Destroyed 44 | . 44 Melee . | . . Projectile . | . . AOE 44 | . 44 Terrain Rammed . | . . Walls Destroyed . | . . Machines Disabled . | . . Actions | -11 -10 --------- Run | Yrd Mat Total 758 | 79 679 Wait 152 | 3 149 Move 422 | 51 371 Hop . | . . Pick Up 20 | 6 14 Fast Attach 8 | 6 2 Attach 6 | . 6 Detach . | . . Swap 14 | . 14 Drop 12 | . 12 Fire 107 | 13 94 Melee . | . . Ram . | . . Kick . | . . Crush . | . . Escape Stasis . | . . Rewire . | . . Trap 17 | . 17 Miscellaneous . | . . Route ------- -11/Scrapyard -10/Materials (discovered 4 exits: [*Mat x2] / [*Min x2]) History --------- Turn | Location | Event 52 | -11/Scrapyard | Discovered new exit (range 15) 132 | -11/Scrapyard | Entered Materials 304 | -10/Materials | Build established: Mutant 505 | -10/Materials | Discovered new exit (range 11) 616 | -10/Materials | Discovered new exit (range 12) 725 | -10/Materials | Discovered new exit (range 14) 846 | -10/Materials | Discovered new exit (range 8) 1032 | -10/Materials | Derelicts attacked the area 1066 | -10/Materials | Core integrity fell below 50% 1112 | -10/Materials | Lost 3 parts (1p2n) 1120 | -10/Materials | Core integrity fell below 20% 1151 | -10/Materials | Destroyed self with Rocket Launcher Last Messages --------------- 01089_ Acquired 8 matter. 01089_ Triggered Alarm Trap. 01089_ An alarm sounds. 01089_ ALERT: Alarm triggered, dispatching investigation squad. 01095_ Acquired 7 matter. 01102_ 88-UP8(R) affixes Scrap Shield Fragment to Scrap Shield. 01110_ 88-UP8(R) knocked back. 01113_ Sub. Monowheel melted. 01113_ 88-UP8(R) destroyed. 01116_ 0H-B3N(R) knocked back. 01125_ Lgt. Cannon destroyed. 01126_ 0H-B3N(R) knocked back. 01126_ 0H-B3N(R) destroyed. 01129_ Acquired 3 matter. 01134_ Acquired 7 matter. 01138_ Ion Engine destroyed. 01140_ G-34 Mercenary destroyed. 01145_ The unstable cave ceiling collapses. 01146_ G-34 Mercenary destroyed. 01151_ Electrolysis Chamber disabled. Map ----- +----------------------------------------------------+ | ########### < ! #########???????? | | # # ! # #???????? | | # ! # ###### # """"" ######### | | # # #????# # """"" # | | # """ """ " #????# # """"" # """ | | # """ "" # ###### + # """ | | # """ "" # # # # # """ | | # """ " # # # # # | | # # # # # ""# | | #######+### # # # ! T"# "T" | | ??????# #?# # # # ""# """ | | ??????# #?# # # # ! # | | ??????# #?# # # #######+#####+### | | ??????# #?#% + # #?????#/! ! != ## | | #######+###% # # #?????#^% !!! *+ | | # #* ###### ??????#^=*%%! #% | | # # #???# ###### = [ # | | # """ # #???# = # | | # """"" + #???# < ^^ # | | # """"" # #???# =#* | | # """"" #% #??## ###### [ +% | | # " " #[% ### ## ##????###### *=#[ | | # #%& # #??###????# *=## | | ?## *!#= #??# ??# = # | | ?# * #???# # %# | | ?# % ! @ #???# ! + | | # % = """ #???#### # # | | # "Y #??????#### ## | | ?# """ #????????# | | ? # # % # #????????# " | | ???# # """* ## #######????????# ! | | ???# # """ #####??????????????# < " | | ???# # """ #??????????????????# % ! | | ???# # #??????????????????# " | | ???# + ! [ #??????????????????# | | ???# ########??????????????????## ## | | ???# #??????????????????????????# #? | | ???# #??????????????????????????+ ? | | ???# #??????????????????????????# ? | | ???? ???????????????????????????# ? | | ??????????????????????????????????#####? | | ???????????????????????????????????????? | | ???????????????????????????????????????? | | ???????????????????????????????????????? | | ???????????????????????????????????????? | | ???????????????????????????????????????? | | ???????????????????????????????????????? | | ???????????????????????????????????????? | | ???????????????????????????????????????? | | ???????????????????????????????????????? | +----------------------------------------------------+ Best States ------------- Heat Dissipation 35 Energy Generation 10 Energy Capacity 250 Matter Stores 300 Matter Capacity 300 Sight Range 16 Terrain Scan Density 10 Evasion (%) 41 Recoil Reduction 2 Item Schematics ----------------- Huge Storage Unit | -10/Materials | Hacked Robot Schematics ------------------ None Fabricated ------------ Nothing Alien Tech Used ----------------- None Achievements -------------- None Challenges ------------ None Game ------ Seed PiercingCoolantMatrix Manual? 0 Play Time 00:08:03 Cumulative 134.2 hours Start 2024.06.05 @ 00:42:16 End 2024.06.05 @ 00:50:01 Sessions 1 Manual Loads 0 Difficulty Rogue Special Mode None Game No. 28 Rogue 27 Adventurer 1 Explorer 0 Win Type - Total 11 Types 3/2/4/0/0/0/2/0/0 Lore% 51 Gallery% 72 Achievement% 63 Wizard Run 0 Options --------- Layout 0 ASCII 0 Keyboard 0 Movement Mouse Keybinds 0 Fullscreen 1 Font 18/Terminus Map View 76x50 Zoom Use 0% Tactical HUD 1 Map Filters NONE Filters NONE Steam 0 RUN: d437cace-2601-4df3-9f21-7b2ff1a7b25e